[Event "*** SCC Grand Prix: Titled Tuesday Blitz"]
[Site "Chess.com"]
[Date "2020.07.14"]
[Round "1"]
[White "Ashedu66"]
[Black "PrinceMurad09"]
[Result "0-1"]
[WhiteElo "2181"]
[BlackElo "2518"]
[TimeControl "180+1"]
[EndTime "10:05:34 PDT"]
[Termination "PrinceMurad09 won by resignation"]

1. d4 {[%clk 0:03:00.9]} 1... Nf6 {[%clk 0:02:59.4]} 2. Nf3 {[%clk 0:03:00.2]}
2... c5 {[%clk 0:02:57.3]} 3. d5 {[%clk 0:02:59.7]} 3... b5 {[%clk 0:02:56.9]}
4. Bg5 {[%clk 0:02:57.7]} 4... Qb6 {[%clk 0:02:54.8]} 5. Bxf6 {[%clk 0:02:57.1]}
5... Qxf6 {[%clk 0:02:54.5]} 6. Nbd2 {[%clk 0:02:54.2]} 6... g6 {[%clk
0:02:52.2]} 7. e4 {[%clk 0:02:47.4]} 7... Qb6 {[%clk 0:02:50.7]} 8. a4 {[%clk
0:02:27.9]} 8... bxa4 {[%clk 0:02:48.5]} 9. Nc4 {[%clk 0:02:21.7]} 9... Qb7
{[%clk 0:02:48]} 10. e5 {[%clk 0:02:12]} 10... Bg7 {[%clk 0:02:46.4]} 11. Bd3
{[%clk 0:02:07.1]} 11... O-O {[%clk 0:02:45.7]} 12. O-O {[%clk 0:02:06.1]} 12...
Qxd5 {[%clk 0:02:35.8]} 13. Qe2 {[%clk 0:02:00]} 13... Qb7 {[%clk 0:02:22.1]}
14. Rxa4 {[%clk 0:01:38.8]} 14... Nc6 {[%clk 0:02:22]} 15. c3 {[%clk 0:01:35.8]}
15... Rb8 {[%clk 0:02:21.6]} 16. Rfa1 {[%clk 0:01:27.2]} 16... Qc7 {[%clk
0:02:21]} 17. Be4 {[%clk 0:00:55.7]} 17... a6 {[%clk 0:02:15.7]} 18. Bd5 {[%clk
0:00:36.2]} 18... Bb7 {[%clk 0:02:02.4]} 19. Bxc6 {[%clk 0:00:24.1]} 19... Bxc6
{[%clk 0:01:57.5]} 20. Rxa6 {[%clk 0:00:19.1]} 20... Rb7 {[%clk 0:01:50.1]} 21.
R6a5 {[%clk 0:00:15.8]} 21... Bd5 {[%clk 0:01:44.4]} 22. R1a4 {[%clk 0:00:07.9]}
22... Rfb8 {[%clk 0:01:43.3]} 23. h3 {[%clk 0:00:07]} 23... h5 {[%clk
0:01:43.2]} 24. Qe3 {[%clk 0:00:04.8]} 24... d6 {[%clk 0:01:39.9]} 25. exd6
{[%clk 0:00:03.3]} 25... exd6 {[%clk 0:01:40.3]} 26. Qf4 {[%clk 0:00:03.2]}
26... Bxc4 {[%clk 0:01:36.1]} 27. Rxc4 {[%clk 0:00:03.4]} 27... Qxa5 {[%clk
0:01:35.9]} 0-1

[Event "*** SCC Grand Prix: Titled Tuesday Blitz"]
[Site "Chess.com"]
[Date "2020.07.14"]
[Round "1"]
[White "novocane"]
[Black "Flawless_Fighter"]
[Result "0-1"]
[WhiteElo "2253"]
[BlackElo "2575"]
[TimeControl "180+1"]
[EndTime "10:05:35 PDT"]
[Termination "Flawless_Fighter won on time"]

1. d4 {[%clk 0:03:00.6]} 1... Nf6 {[%clk 0:02:54.8]} 2. c4 {[%clk 0:03:00.4]}
2... e6 {[%clk 0:02:54.6]} 3. Nc3 {[%clk 0:03:00]} 3... d5 {[%clk 0:02:55.5]} 4.
cxd5 {[%clk 0:03:00]} 4... Nxd5 {[%clk 0:02:56.4]} 5. e4 {[%clk 0:03:00.3]} 5...
Nxc3 {[%clk 0:02:57]} 6. bxc3 {[%clk 0:03:00.7]} 6... c5 {[%clk 0:02:57.9]} 7.
Nf3 {[%clk 0:03:00.7]} 7... cxd4 {[%clk 0:02:58]} 8. cxd4 {[%clk 0:03:01.1]}
8... Bb4+ {[%clk 0:02:58.7]} 9. Bd2 {[%clk 0:03:01.5]} 9... Bxd2+ {[%clk
0:02:59.4]} 10. Qxd2 {[%clk 0:03:01.9]} 10... O-O {[%clk 0:03:00.3]} 11. Bc4
{[%clk 0:03:02.2]} 11... b6 {[%clk 0:03:00.6]} 12. O-O {[%clk 0:03:01.5]} 12...
Nd7 {[%clk 0:03:01.2]} 13. Rfe1 {[%clk 0:02:54.2]} 13... Bb7 {[%clk 0:03:01.3]}
14. d5 {[%clk 0:02:36.6]} 14... exd5 {[%clk 0:03:00.1]} 15. Bxd5 {[%clk
0:02:17.6]} 15... Bxd5 {[%clk 0:02:59.3]} 16. exd5 {[%clk 0:02:17.8]} 16... Nc5
{[%clk 0:02:57.6]} 17. Ne5 {[%clk 0:02:04.4]} 17... Qf6 {[%clk 0:02:54.2]} 18.
Rad1 {[%clk 0:01:48.7]} 18... Rad8 {[%clk 0:02:53.1]} 19. g3 {[%clk 0:01:24.8]}
19... h6 {[%clk 0:02:47.8]} 20. d6 {[%clk 0:00:58.8]} 20... Rfe8 {[%clk
0:02:41.2]} 21. f4 {[%clk 0:00:44.5]} 21... Re6 {[%clk 0:02:28.3]} 22. d7 {[%clk
0:00:19.2]} 22... Qe7 {[%clk 0:02:05.1]} 23. Qd5 {[%clk 0:00:12.1]} 23... Rxd7
{[%clk 0:01:42.5]} 24. Qa8+ {[%clk 0:00:07.8]} 24... Kh7 {[%clk 0:01:39.3]} 25.
Rxd7 {[%clk 0:00:02.2]} 25... Nxd7 {[%clk 0:01:37.6]} 0-1

[Event "*** SCC Grand Prix: Titled Tuesday Blitz"]
[Site "Chess.com"]
[Date "2020.07.14"]
[Round "1"]
[White "Klavdia_Nik"]
[Black "Gahan-MG"]
[Result "0-1"]
[WhiteElo "2059"]
[BlackElo "2475"]
[TimeControl "180+1"]
[EndTime "10:05:35 PDT"]
[Termination "Gahan-MG won on time"]

1. Nf3 {[%clk 0:02:59.6]} 1... Nf6 {[%clk 0:03:00.9]} 2. c4 {[%clk 0:02:59.2]}
2... g6 {[%clk 0:03:01.8]} 3. b3 {[%clk 0:02:59.3]} 3... Bg7 {[%clk 0:03:01.3]}
4. Bb2 {[%clk 0:03:00]} 4... O-O {[%clk 0:03:01.2]} 5. g3 {[%clk 0:03:00.4]}
5... a5 {[%clk 0:03:00.5]} 6. Nc3 {[%clk 0:02:59.2]} 6... d5 {[%clk 0:02:59.8]}
7. d3 {[%clk 0:02:54.4]} 7... Nc6 {[%clk 0:02:56.4]} 8. Bg2 {[%clk 0:02:53.5]}
8... Bg4 {[%clk 0:02:55.9]} 9. O-O {[%clk 0:02:50.8]} 9... Qd7 {[%clk
0:02:53.2]} 10. Re1 {[%clk 0:02:47.6]} 10... Rad8 {[%clk 0:02:51.3]} 11. Nb5
{[%clk 0:02:36.5]} 11... Rfe8 {[%clk 0:02:44]} 12. Ne5 {[%clk 0:02:25.4]} 12...
Nxe5 {[%clk 0:02:43]} 13. Bxe5 {[%clk 0:02:25.9]} 13... c6 {[%clk 0:02:40.6]}
14. Na3 {[%clk 0:02:16.2]} 14... Qf5 {[%clk 0:02:36.6]} 15. Bb2 {[%clk
0:01:59.6]} 15... Qh5 {[%clk 0:02:34.8]} 16. Qc2 {[%clk 0:01:38.1]} 16... e5
{[%clk 0:02:30]} 17. cxd5 {[%clk 0:01:27.3]} 17... cxd5 {[%clk 0:02:30.9]} 18.
Nb5 {[%clk 0:01:24.6]} 18... e4 {[%clk 0:02:21.2]} 19. d4 {[%clk 0:01:07.1]}
19... Bh3 {[%clk 0:02:18.9]} 20. Bc1 {[%clk 0:00:57.3]} 20... Ng4 {[%clk
0:02:18]} 21. Bh1 {[%clk 0:00:44.6]} 21... Rc8 {[%clk 0:02:05.8]} 22. Qd1 {[%clk
0:00:38.8]} 22... Rc6 {[%clk 0:01:56.5]} 23. e3 {[%clk 0:00:27.3]} 23... Rf6
{[%clk 0:01:51.2]} 24. Re2 {[%clk 0:00:24.5]} 24... Nxf2 {[%clk 0:01:44.8]} 25.
Qe1 {[%clk 0:00:19.4]} 25... Nd3 {[%clk 0:01:44.1]} 26. Qd1 {[%clk 0:00:05.4]}
26... Bg4 {[%clk 0:01:39.8]} 27. Nc3 {[%clk 0:00:03.9]} 27... Rc8 {[%clk
0:01:38.3]} 0-1

[Event "*** SCC Grand Prix: Titled Tuesday Blitz"]
[Site "Chess.com"]
[Date "2020.07.14"]
[Round "1"]
[White "Khazieva_Elza"]
[Black "temus_galaktionov"]
[Result "0-1"]
[WhiteElo "2343"]
[BlackElo "2664"]
[TimeControl "180+1"]
[EndTime "10:05:36 PDT"]
[Termination "temus_galaktionov won on time"]

1. e4 {[%clk 0:03:00.9]} 1... c6 {[%clk 0:03:00.9]} 2. d3 {[%clk 0:03:00.7]}
2... g6 {[%clk 0:02:57.4]} 3. Nf3 {[%clk 0:02:59.5]} 3... d6 {[%clk 0:02:58.3]}
4. g3 {[%clk 0:02:59.1]} 4... Bg7 {[%clk 0:02:55.9]} 5. Bg2 {[%clk 0:02:59]}
5... e5 {[%clk 0:02:55.8]} 6. O-O {[%clk 0:02:58.5]} 6... Ne7 {[%clk 0:02:55.6]}
7. c3 {[%clk 0:02:55.1]} 7... O-O {[%clk 0:02:54.9]} 8. h3 {[%clk 0:02:47.8]}
8... f5 {[%clk 0:02:52.3]} 9. Qb3+ {[%clk 0:02:38.8]} 9... Kh8 {[%clk
0:02:51.5]} 10. Ng5 {[%clk 0:02:38.9]} 10... d5 {[%clk 0:02:41.1]} 11. f4 {[%clk
0:02:01.9]} 11... h6 {[%clk 0:02:32.4]} 12. Nf3 {[%clk 0:02:01.7]} 12... exf4
{[%clk 0:02:27.2]} 13. Bxf4 {[%clk 0:01:44.4]} 13... fxe4 {[%clk 0:02:21.1]} 14.
dxe4 {[%clk 0:01:45.3]} 14... dxe4 {[%clk 0:02:22]} 15. Ne5 {[%clk 0:01:29.9]}
15... Qd5 {[%clk 0:02:21.2]} 16. Qxd5 {[%clk 0:00:52.8]} 16... cxd5 {[%clk
0:02:22.1]} 17. Ng4 {[%clk 0:00:34.1]} 17... g5 {[%clk 0:02:16.1]} 18. Bd6
{[%clk 0:00:30.9]} 18... Rxf1+ {[%clk 0:02:15.2]} 19. Bxf1 {[%clk 0:00:30.6]}
19... Nf5 {[%clk 0:02:16]} 20. Bxb8 {[%clk 0:00:16.5]} 20... Rxb8 {[%clk
0:02:16.9]} 21. Kh2 {[%clk 0:00:12.2]} 21... h5 {[%clk 0:02:14.3]} 22. Nf2
{[%clk 0:00:11.6]} 22... Be5 {[%clk 0:02:13.8]} 23. Nh1 {[%clk 0:00:08.4]} 23...
h4 {[%clk 0:02:11.3]} 24. Na3 {[%clk 0:00:07.5]} 24... Nxg3 {[%clk 0:02:10.4]}
25. Nxg3 {[%clk 0:00:07.5]} 25... Bxg3+ {[%clk 0:02:11.3]} 26. Kg2 {[%clk
0:00:08]} 26... Be6 {[%clk 0:02:11.4]} 27. Nb5 {[%clk 0:00:07.6]} 27... Rf8
{[%clk 0:02:08]} 28. Nd4 {[%clk 0:00:04.4]} 28... Rf2+ {[%clk 0:02:07.7]} 29.
Kg1 {[%clk 0:00:04.3]} 29... Bf7 {[%clk 0:02:06.6]} 30. b3 {[%clk 0:00:03.1]}
30... Kg7 {[%clk 0:02:04.9]} 31. Rd1 {[%clk 0:00:03]} 31... Kf6 {[%clk
0:02:04.3]} 32. a4 {[%clk 0:00:02.6]} 32... Ke5 {[%clk 0:02:00.5]} 33. Nb5
{[%clk 0:00:02]} 33... a6 {[%clk 0:01:59.9]} 34. Nd4 {[%clk 0:00:01.4]} 34...
Bh5 {[%clk 0:01:54.7]} 0-1

[Event "*** SCC Grand Prix: Titled Tuesday Blitz"]
[Site "Chess.com"]
[Date "2020.07.14"]
[Round "1"]
[White "SilviusTiberius"]
[Black "JiiHart"]
[Result "1-0"]
[WhiteElo "2489"]
[BlackElo "2109"]
[TimeControl "180+1"]
[EndTime "10:05:38 PDT"]
[Termination "SilviusTiberius won by resignation"]

1. e4 {[%clk 0:03:00.9]} 1... c5 {[%clk 0:02:58.7]} 2. Nf3 {[%clk 0:03:00.9]}
2... Nc6 {[%clk 0:02:58.7]} 3. d4 {[%clk 0:03:01.3]} 3... cxd4 {[%clk 0:02:59]}
4. Nxd4 {[%clk 0:03:01.9]} 4... Nf6 {[%clk 0:02:59.5]} 5. Nc3 {[%clk 0:03:02]}
5... d6 {[%clk 0:03:00]} 6. Bg5 {[%clk 0:03:01.4]} 6... e6 {[%clk 0:02:59.6]} 7.
Qd2 {[%clk 0:03:01]} 7... a6 {[%clk 0:03:00]} 8. O-O-O {[%clk 0:03:00.9]} 8...
Bd7 {[%clk 0:02:59.6]} 9. f4 {[%clk 0:03:00.9]} 9... h6 {[%clk 0:02:59.3]} 10.
Bh4 {[%clk 0:02:59.2]} 10... g5 {[%clk 0:02:58.6]} 11. fxg5 {[%clk 0:02:57.8]}
11... Ng4 {[%clk 0:02:57.4]} 12. Nxc6 {[%clk 0:02:52.8]} 12... Bxc6 {[%clk
0:02:54.7]} 13. Be2 {[%clk 0:02:52.9]} 13... hxg5 {[%clk 0:02:44]} 14. Bxg5
{[%clk 0:02:48.9]} 14... Qxg5 {[%clk 0:02:42.6]} 15. Qxg5 {[%clk 0:02:47.6]}
15... Bh6 {[%clk 0:02:42]} 16. Qxh6 {[%clk 0:02:46.5]} 16... Nxh6 {[%clk
0:02:41.3]} 17. Rxd6 {[%clk 0:02:46.2]} 17... Rd8 {[%clk 0:02:34.4]} 18. Rxd8+
{[%clk 0:02:43.1]} 18... Kxd8 {[%clk 0:02:33.5]} 19. Kd2 {[%clk 0:02:42.5]}
19... Ke7 {[%clk 0:02:30.9]} 20. Ke3 {[%clk 0:02:41.1]} 20... Rg8 {[%clk
0:02:24.7]} 21. g3 {[%clk 0:02:31.9]} 21... Nf5+ {[%clk 0:02:04.6]} 22. Kf2
{[%clk 0:02:30.4]} 22... Nd4 {[%clk 0:02:02.7]} 23. Bd3 {[%clk 0:02:29.8]} 23...
b5 {[%clk 0:01:56.1]} 24. Rd1 {[%clk 0:02:20.5]} 24... Rh8 {[%clk 0:01:25.3]}
25. h4 {[%clk 0:02:18.7]} 25... Rg8 {[%clk 0:01:13.1]} 26. a3 {[%clk 0:02:07.1]}
26... f5 {[%clk 0:01:05.7]} 27. exf5 {[%clk 0:02:04.8]} 27... exf5 {[%clk
0:01:03.1]} 28. Ne2 {[%clk 0:01:58.6]} 28... Nf3 {[%clk 0:00:27.2]} 29. Nf4
{[%clk 0:01:43.3]} 29... Ne5 {[%clk 0:00:16.7]} 30. Bxf5 {[%clk 0:01:39.5]}
30... Rf8 {[%clk 0:00:16]} 31. Bh3 {[%clk 0:01:34.2]} 1-0

[Event "*** SCC Grand Prix: Titled Tuesday Blitz"]
[Site "Chess.com"]
[Date "2020.07.14"]
[Round "1"]
[White "Oleksandr_Bortnyk"]
[Black "Jbd735"]
[Result "1-0"]
[WhiteElo "2933"]
[BlackElo "2435"]
[TimeControl "180+1"]
[EndTime "10:05:39 PDT"]
[Termination "Oleksandr_Bortnyk won by resignation"]

1. e4 {[%clk 0:03:00.9]} 1... e5 {[%clk 0:02:59.5]} 2. Nf3 {[%clk 0:03:00.6]}
2... Nc6 {[%clk 0:02:59.2]} 3. Bc4 {[%clk 0:02:57.6]} 3... Nf6 {[%clk
0:02:56.9]} 4. Ng5 {[%clk 0:02:57.5]} 4... Bc5 {[%clk 0:02:53.6]} 5. Bxf7+
{[%clk 0:02:56.8]} 5... Ke7 {[%clk 0:02:53.7]} 6. Bb3 {[%clk 0:02:56.1]} 6...
Rf8 {[%clk 0:02:53.3]} 7. d3 {[%clk 0:02:51.9]} 7... d6 {[%clk 0:02:47.5]} 8.
Be3 {[%clk 0:02:49.1]} 8... Bg4 {[%clk 0:02:19.9]} 9. Qd2 {[%clk 0:02:44.6]}
9... h6 {[%clk 0:02:16.2]} 10. Nf3 {[%clk 0:02:44.4]} 10... Bxf3 {[%clk
0:02:13.5]} 11. gxf3 {[%clk 0:02:44.6]} 11... Nd4 {[%clk 0:02:09.2]} 12. Bxd4
{[%clk 0:02:42.3]} 12... Bxd4 {[%clk 0:02:08.8]} 13. c3 {[%clk 0:02:31]} 13...
Bb6 {[%clk 0:02:07.4]} 14. Na3 {[%clk 0:02:00.9]} 14... Nh5 {[%clk 0:01:55]} 15.
Nc4 {[%clk 0:02:00.9]} 15... Rxf3 {[%clk 0:01:47.5]} 16. Nxb6 {[%clk 0:02:00]}
16... axb6 {[%clk 0:01:46.9]} 17. Qe2 {[%clk 0:01:42.3]} 17... Qf8 {[%clk
0:01:35.9]} 18. O-O-O {[%clk 0:01:41.1]} 18... Qf4+ {[%clk 0:01:14.6]} 19. Kb1
{[%clk 0:01:40.9]} 19... g6 {[%clk 0:01:00.7]} 20. d4 {[%clk 0:01:37.2]} 20...
Rxf2 {[%clk 0:00:54.3]} 21. Qc4 {[%clk 0:01:35]} 21... Qxe4+ {[%clk 0:00:50.4]}
22. Ka1 {[%clk 0:01:34.2]} 22... Qe2 {[%clk 0:00:25.7]} 23. Qxc7+ {[%clk
0:01:28.1]} 23... Ke8 {[%clk 0:00:17]} 24. Rb1 {[%clk 0:01:27.5]} 24... Qb5
{[%clk 0:00:11.6]} 25. Qxb7 {[%clk 0:01:19.8]} 25... Rxa2+ {[%clk 0:00:03.5]}
26. Bxa2 {[%clk 0:01:19.3]} 1-0

[Event "*** SCC Grand Prix: Titled Tuesday Blitz"]
[Site "Chess.com"]
[Date "2020.07.14"]
[Round "1"]
[White "szachuspl"]
[Black "DonBroca"]
[Result "1-0"]
[WhiteElo "2504"]
[BlackElo "2125"]
[TimeControl "180+1"]
[EndTime "10:05:39 PDT"]
[Termination "szachuspl won by resignation"]

1. d4 {[%clk 0:02:59.1]} 1... Nf6 {[%clk 0:02:57.2]} 2. c4 {[%clk 0:02:56.5]}
2... g6 {[%clk 0:02:56.3]} 3. Nc3 {[%clk 0:02:56.4]} 3... d6 {[%clk 0:02:56.3]}
4. e4 {[%clk 0:02:56.3]} 4... Nc6 {[%clk 0:02:55.9]} 5. d5 {[%clk 0:02:48.7]}
5... Nb8 {[%clk 0:02:51.6]} 6. Nf3 {[%clk 0:02:48.3]} 6... Bg7 {[%clk
0:02:51.1]} 7. Bd3 {[%clk 0:02:47.8]} 7... O-O {[%clk 0:02:50.8]} 8. h3 {[%clk
0:02:48.3]} 8... Nbd7 {[%clk 0:02:48.8]} 9. O-O {[%clk 0:02:47.8]} 9... e5
{[%clk 0:02:47.6]} 10. Be3 {[%clk 0:02:41.8]} 10... b6 {[%clk 0:02:42.1]} 11. b4
{[%clk 0:02:41.1]} 11... a5 {[%clk 0:02:39.2]} 12. a3 {[%clk 0:02:40.5]} 12...
Ne8 {[%clk 0:02:34]} 13. Nd2 {[%clk 0:02:39.9]} 13... f5 {[%clk 0:02:31]} 14. f3
{[%clk 0:02:39.7]} 14... f4 {[%clk 0:02:29.5]} 15. Bf2 {[%clk 0:02:39.8]} 15...
Ndf6 {[%clk 0:02:14.6]} 16. c5 {[%clk 0:02:39.4]} 16... g5 {[%clk 0:01:59.8]}
17. Nc4 {[%clk 0:02:38.4]} 17... bxc5 {[%clk 0:01:48]} 18. bxc5 {[%clk
0:02:24.8]} 18... h5 {[%clk 0:01:40.9]} 19. Be2 {[%clk 0:02:19.9]} 19... Rf7
{[%clk 0:01:03.9]} 20. cxd6 {[%clk 0:02:18.5]} 20... Nxd6 {[%clk 0:01:01.5]} 21.
Nxe5 {[%clk 0:02:15.6]} 21... Rf8 {[%clk 0:00:52.5]} 22. Nc6 {[%clk 0:02:12.3]}
22... Qe8 {[%clk 0:00:38.4]} 23. e5 {[%clk 0:02:11.9]} 23... Nxd5 {[%clk
0:00:20.8]} 24. Qxd5+ {[%clk 0:02:08.8]} 24... Be6 {[%clk 0:00:20.3]} 25. Qc5
{[%clk 0:02:06.3]} 25... Nb7 {[%clk 0:00:18.6]} 26. Qb5 {[%clk 0:02:01.7]} 26...
Bd7 {[%clk 0:00:05.5]} 27. Nd5 {[%clk 0:01:52.7]} 27... Bxc6 {[%clk 0:00:05.5]}
28. Qxc6 {[%clk 0:01:52.7]} 28... Qxc6 {[%clk 0:00:04.7]} 29. Ne7+ {[%clk
0:01:52.8]} 29... Kh8 {[%clk 0:00:04.4]} 30. Nxc6 {[%clk 0:01:53.7]} 30... Rae8
{[%clk 0:00:03.6]} 31. Bd4 {[%clk 0:01:45.9]} 31... Nd8 {[%clk 0:00:02.4]} 32.
Nxd8 {[%clk 0:01:45.6]} 32... Rxd8 {[%clk 0:00:03.3]} 33. Rfd1 {[%clk
0:01:45.6]} 33... Rde8 {[%clk 0:00:02.4]} 34. Bb5 {[%clk 0:01:45.4]} 34... Re7
{[%clk 0:00:01.9]} 35. Bc5 {[%clk 0:01:45.8]} 1-0

[Event "*** SCC Grand Prix: Titled Tuesday Blitz"]
[Site "Chess.com"]
[Date "2020.07.14"]
[Round "1"]
[White "Caterpiller35"]
[Black "Hikaru"]
[Result "0-1"]
[WhiteElo "2455"]
[BlackElo "3208"]
[TimeControl "180+1"]
[EndTime "10:05:40 PDT"]
[Termination "Hikaru won on time"]

1. d4 {[%clk 0:03:00.2]} 1... Nf6 {[%clk 0:02:58.2]} 2. Bg5 {[%clk 0:03:00.1]}
2... c5 {[%clk 0:02:53.7]} 3. Bxf6 {[%clk 0:02:51.8]} 3... gxf6 {[%clk
0:02:52.8]} 4. d5 {[%clk 0:02:52.1]} 4... Qb6 {[%clk 0:02:52.9]} 5. Qc1 {[%clk
0:02:51.4]} 5... f5 {[%clk 0:02:52.3]} 6. c4 {[%clk 0:02:50.6]} 6... e6 {[%clk
0:02:52.6]} 7. Nc3 {[%clk 0:02:49.4]} 7... d6 {[%clk 0:02:52.5]} 8. e3 {[%clk
0:02:48.1]} 8... Nd7 {[%clk 0:02:52.1]} 9. Nf3 {[%clk 0:02:45.6]} 9... Bg7
{[%clk 0:02:51.7]} 10. Qc2 {[%clk 0:02:43]} 10... Nf6 {[%clk 0:02:48.2]} 11. Bd3
{[%clk 0:02:39.2]} 11... Bd7 {[%clk 0:02:47]} 12. h3 {[%clk 0:02:35.5]} 12...
O-O-O {[%clk 0:02:44.9]} 13. O-O {[%clk 0:02:32]} 13... Rhg8 {[%clk 0:02:43.1]}
14. a3 {[%clk 0:02:30.3]} 14... Bh8 {[%clk 0:02:40.8]} 15. b4 {[%clk 0:02:24.9]}
15... Rg6 {[%clk 0:02:36.2]} 16. bxc5 {[%clk 0:02:12.1]} 16... Qxc5 {[%clk
0:02:37.1]} 17. Rab1 {[%clk 0:02:05]} 17... Rdg8 {[%clk 0:02:36.6]} 18. Nh4
{[%clk 0:01:26.9]} 18... Rh6 {[%clk 0:02:29.2]} 19. Nxf5 {[%clk 0:01:26.5]}
19... exf5 {[%clk 0:02:23.9]} 20. Bxf5 {[%clk 0:01:27.4]} 20... Bxf5 {[%clk
0:02:05.1]} 21. Qxf5+ {[%clk 0:01:27]} 21... Kb8 {[%clk 0:02:06]} 22. Ne4 {[%clk
0:00:42.5]} 22... Qc7 {[%clk 0:01:36.8]} 23. Rb4 {[%clk 0:00:04]} 23... Qd7
{[%clk 0:01:25.7]} 0-1

[Event "*** SCC Grand Prix: Titled Tuesday Blitz"]
[Site "Chess.com"]
[Date "2020.07.14"]
[Round "1"]
[White "Kaua18"]
[Black "Zablotsky"]
[Result "0-1"]
[WhiteElo "2273"]
[BlackElo "2584"]
[TimeControl "180+1"]
[EndTime "10:05:40 PDT"]
[Termination "Zablotsky won by resignation"]

1. e4 {[%clk 0:02:59.2]} 1... e5 {[%clk 0:02:56.2]} 2. Nf3 {[%clk 0:02:54.7]}
2... Qe7 {[%clk 0:02:55.6]} 3. Nc3 {[%clk 0:02:30.6]} 3... Nf6 {[%clk
0:02:54.8]} 4. Bc4 {[%clk 0:02:27.2]} 4... c6 {[%clk 0:02:54.8]} 5. O-O {[%clk
0:02:15.3]} 5... a5 {[%clk 0:02:54.4]} 6. a4 {[%clk 0:02:14.8]} 6... Nxe4 {[%clk
0:02:54]} 7. Nxe4 {[%clk 0:02:11.2]} 7... d5 {[%clk 0:02:43.5]} 8. Ng3 {[%clk
0:01:54.7]} 8... dxc4 {[%clk 0:02:43.5]} 9. Nxe5 {[%clk 0:01:54.3]} 9... Qc7
{[%clk 0:02:43.4]} 10. Nxc4 {[%clk 0:01:33]} 10... Be7 {[%clk 0:02:37.6]} 11.
Re1 {[%clk 0:01:30.8]} 11... O-O {[%clk 0:02:37.2]} 12. d4 {[%clk 0:01:26.9]}
12... Be6 {[%clk 0:02:35.7]} 13. Ne5 {[%clk 0:01:22.2]} 13... Re8 {[%clk
0:02:33.2]} 14. c3 {[%clk 0:01:19.6]} 14... Nd7 {[%clk 0:02:31.8]} 15. Bf4
{[%clk 0:01:16.3]} 15... Nxe5 {[%clk 0:02:31.6]} 16. Bxe5 {[%clk 0:01:17.2]}
16... Qd7 {[%clk 0:02:31.5]} 17. Ne4 {[%clk 0:01:16]} 17... f6 {[%clk
0:02:31.3]} 18. Bg3 {[%clk 0:01:14.2]} 18... Bf5 {[%clk 0:02:23.2]} 19. f3
{[%clk 0:01:10.6]} 19... Qd5 {[%clk 0:02:22.8]} 20. Qd3 {[%clk 0:01:05.2]} 20...
Qf7 {[%clk 0:01:57.9]} 21. Rad1 {[%clk 0:00:59]} 21... Bf8 {[%clk 0:01:57.7]}
22. Qd2 {[%clk 0:00:44.4]} 22... Rad8 {[%clk 0:01:56.4]} 23. Qf4 {[%clk
0:00:42.4]} 23... Bg6 {[%clk 0:01:55]} 24. h4 {[%clk 0:00:40.5]} 24... Qb3
{[%clk 0:01:49.5]} 25. Rd2 {[%clk 0:00:31.2]} 25... Qxa4 {[%clk 0:01:49.2]} 26.
Rde2 {[%clk 0:00:30.2]} 26... Qb5 {[%clk 0:01:49.1]} 27. Kf2 {[%clk 0:00:21.3]}
27... c5 {[%clk 0:01:41.7]} 28. Nxc5 {[%clk 0:00:18.4]} 28... Bxc5 {[%clk
0:01:41.1]} 29. dxc5 {[%clk 0:00:19.3]} 29... Qxc5+ {[%clk 0:01:41.2]} 30. Kf1
{[%clk 0:00:17.8]} 30... Bd3 {[%clk 0:01:31.4]} 31. Bf2 {[%clk 0:00:16.7]} 31...
Qb5 {[%clk 0:01:31.3]} 32. Qd2 {[%clk 0:00:15.3]} 32... Bxe2+ {[%clk 0:01:31.2]}
33. Rxe2 {[%clk 0:00:15.6]} 33... Rxd2 {[%clk 0:01:30.5]} 0-1

[Event "*** SCC Grand Prix: Titled Tuesday Blitz"]
[Site "Chess.com"]
[Date "2020.07.14"]
[Round "1"]
[White "ChronicUnhappiness"]
[Black "JakubPulpan"]
[Result "0-1"]
[WhiteElo "2351"]
[BlackElo "2680"]
[TimeControl "180+1"]
[EndTime "10:05:42 PDT"]
[Termination "JakubPulpan won by resignation"]

1. c4 {[%clk 0:03:00.8]} 1... e6 {[%clk 0:02:59.8]} 2. Nf3 {[%clk 0:02:57.9]}
2... Nf6 {[%clk 0:02:56.7]} 3. Nc3 {[%clk 0:02:55.7]} 3... c5 {[%clk 0:02:54.9]}
4. g3 {[%clk 0:02:42.8]} 4... b6 {[%clk 0:02:50]} 5. Bg2 {[%clk 0:02:41.8]} 5...
Bb7 {[%clk 0:02:50.4]} 6. O-O {[%clk 0:02:41.6]} 6... d5 {[%clk 0:02:49.7]} 7.
Ne5 {[%clk 0:02:32.3]} 7... Nbd7 {[%clk 0:02:47.7]} 8. Qa4 {[%clk 0:02:26.2]}
8... Bd6 {[%clk 0:02:42.1]} 9. Nxd7 {[%clk 0:02:25.5]} 9... Qxd7 {[%clk
0:02:43]} 10. Qxd7+ {[%clk 0:02:20.3]} 10... Kxd7 {[%clk 0:02:43.9]} 11. d3
{[%clk 0:02:14.8]} 11... h6 {[%clk 0:02:39.2]} 12. cxd5 {[%clk 0:02:03.7]} 12...
Nxd5 {[%clk 0:02:38]} 13. Nxd5 {[%clk 0:01:58]} 13... Bxd5 {[%clk 0:02:37]} 14.
Bxd5 {[%clk 0:01:50.4]} 14... exd5 {[%clk 0:02:36]} 15. e4 {[%clk 0:01:51.3]}
15... Rhe8 {[%clk 0:02:33.7]} 16. f3 {[%clk 0:01:31.5]} 16... Be5 {[%clk
0:02:23.1]} 17. Rb1 {[%clk 0:01:31.5]} 17... Bd4+ {[%clk 0:02:19.4]} 18. Kg2
{[%clk 0:01:30.8]} 18... f5 {[%clk 0:02:19.7]} 19. Re1 {[%clk 0:01:20.3]} 19...
fxe4 {[%clk 0:02:18.2]} 20. dxe4 {[%clk 0:01:18.2]} 20... dxe4 {[%clk
0:02:18.6]} 21. Rxe4 {[%clk 0:01:19.1]} 21... Rxe4 {[%clk 0:02:18.5]} 22. fxe4
{[%clk 0:01:20]} 22... Re8 {[%clk 0:02:18.8]} 23. b4 {[%clk 0:01:05.2]} 23...
Rxe4 {[%clk 0:02:15.9]} 24. bxc5 {[%clk 0:01:04.1]} 24... Re2+ {[%clk
0:02:08.8]} 25. Kh3 {[%clk 0:01:01.6]} 25... Bxc5 {[%clk 0:01:46]} 26. Bb2
{[%clk 0:01:01.7]} 26... g5 {[%clk 0:01:44.9]} 27. a4 {[%clk 0:00:51.1]} 27...
h5 {[%clk 0:01:43.6]} 28. Bf6 {[%clk 0:00:47]} 28... g4+ {[%clk 0:01:39.9]} 29.
Kh4 {[%clk 0:00:47.4]} 29... Ke6 {[%clk 0:01:40]} 30. Bd8 {[%clk 0:00:46]} 30...
Rxh2+ {[%clk 0:01:36.3]} 31. Kg5 {[%clk 0:00:45.6]} 31... Be3+ {[%clk
0:01:36.7]} 32. Kg6 {[%clk 0:00:45.9]} 32... Kd5 {[%clk 0:01:36.2]} 33. Rf1
{[%clk 0:00:41.4]} 33... Bf2 {[%clk 0:01:32.1]} 34. Bh4 {[%clk 0:00:38.5]} 34...
Rxh4 {[%clk 0:01:31.2]} 35. gxh4 {[%clk 0:00:37.7]} 35... g3 {[%clk 0:01:32.1]}
36. Kxh5 {[%clk 0:00:21.9]} 36... g2 {[%clk 0:01:32.2]} 0-1